[Event "Titled Tuesday Blitz April 05 Early 2022"]
[White "Von Buelow, Georg"]
[Black "Horcajuelo Rocamora, Martin"]
[WhiteFideId "4620658"]
[BlackFideId "24573027"]
[WhiteElo "2183"]
[BlackElo "1822"]
[Result "1-0"]
[Round "09"]
[TimeControl "180+1"]
[Date "2022.04.05"]
[WhiteClock "0:00:08"]
[BlackClock "0:00:30"]

1. e4 {[%clk 0:02:59]}  e5 {[%clk 0:02:34]} 2. Nf3 {[%clk 0:02:58]}  Nc6 {[%clk 0:02:33]} 3. Nc3 {[%clk 0:02:58]}  Nf6 {[%clk 0:02:32]} 4. d4 {[%clk 0:02:58]}  exd4 {[%clk 0:02:32]} 5. Nxd4 {[%clk 0:02:59]}  Bb4 {[%clk 0:02:32]} 6. Nxc6 {[%clk 0:02:59]}  bxc6 {[%clk 0:02:33]} 7. Bd3 {[%clk 0:02:59]}  O-O {[%clk 0:02:33]} 8. O-O {[%clk 0:02:59]}  d5 {[%clk 0:02:30]} 9. exd5 {[%clk 0:03:00]}  cxd5 {[%clk 0:02:31]} 10. Bg5 {[%clk 0:03:00]}  Bxc3 {[%clk 0:02:31]} 11. bxc3 {[%clk 0:02:59]}  h6 {[%clk 0:02:32]} 12. Bh4 {[%clk 0:02:55]}  c6 {[%clk 0:02:31]} 13. c4 {[%clk 0:02:39]}  Be6 {[%clk 0:02:25]} 14. cxd5 {[%clk 0:02:36]}  cxd5 {[%clk 0:02:26]} 15. h3 {[%clk 0:02:31]}  Rc8 {[%clk 0:02:23]} 16. Rb1 {[%clk 0:02:26]}  d4 {[%clk 0:02:18]} 17. a4 {[%clk 0:02:11]}  Bd5 {[%clk 0:02:11]} 18. Rb4 {[%clk 0:01:51]}  Bc6 {[%clk 0:02:03]} 19. Qa1 {[%clk 0:01:46]}  Qd5 {[%clk 0:02:00]} 20. f3 {[%clk 0:01:46]}  Rfd8 {[%clk 0:01:56]} 21. Bf2 {[%clk 0:01:36]}  Qg5 {[%clk 0:01:49]} 22. Bxd4 {[%clk 0:01:32]}  Nh5 {[%clk 0:01:47]} 23. Rf2 {[%clk 0:00:40]}  Nf4 {[%clk 0:01:43]} 24. Kh1 {[%clk 0:00:37]}  Qg3 {[%clk 0:01:40]} 25. Bf1 {[%clk 0:00:29]}  Nxh3 {[%clk 0:01:31]} 26. gxh3 {[%clk 0:00:28]}  Bxf3+ {[%clk 0:01:31]} 27. Bg2 {[%clk 0:00:27]}  Qxh3+ {[%clk 0:01:22]} 28. Kg1 {[%clk 0:00:27]}  Bxg2 {[%clk 0:01:22]} 29. Rxg2 {[%clk 0:00:27]}  g6 {[%clk 0:01:22]} 30. c3 {[%clk 0:00:17]}  Re8 {[%clk 0:01:15]} 31. Qf1 {[%clk 0:00:17]}  Qh4 {[%clk 0:01:11]} 32. Rb1 {[%clk 0:00:16]}  Re4 {[%clk 0:01:02]} 33. Qf6 {[%clk 0:00:14]}  Qxf6 {[%clk 0:01:00]} 34. Bxf6 {[%clk 0:00:15]}  Rxa4 {[%clk 0:01:00]} 35. Bd4 {[%clk 0:00:15]}  a5 {[%clk 0:01:00]} 36. Rgb2 {[%clk 0:00:14]}  g5 {[%clk 0:00:54]} 37. Rb6 {[%clk 0:00:13]}  h5 {[%clk 0:00:51]} 38. Rf1 {[%clk 0:00:12]}  Ra2 {[%clk 0:00:46]} 39. Rh6 {[%clk 0:00:12]}  f6 {[%clk 0:00:42]} 40. Bxf6 {[%clk 0:00:11]}  Rc4 {[%clk 0:00:34]} 41. Bd4 {[%clk 0:00:09]}  Rxd4 {[%clk 0:00:29]} 42. cxd4 {[%clk 0:00:09]}  Rd2 {[%clk 0:00:28]} 43. Rxh5 {[%clk 0:00:07]}  Rxd4 {[%clk 0:00:28]} 44. Rxg5+ {[%clk 0:00:08]}  Kh7 {[%clk 0:00:28]} 45. Rxa5 {[%clk 0:00:08]}  Kg6 {[%clk 0:00:29]} 46. Ra2 {[%clk 0:00:08]}  Kg5 {[%clk 0:00:30]} 1-0


[Site "https://www.chess.com"]

[Event "Titled Tuesday Blitz April 05 Early 2022"]
[White "Aaditya Dhingra"]
[Black "Kaminski, Victor"]
[WhiteFideId "25678191"]
[BlackFideId "1131630"]
[WhiteElo "1849"]
[BlackElo "2181"]
[Result "1-0"]
[Round "10"]
[TimeControl "180+1"]
[Date "2022.04.05"]
[WhiteClock "0:00:34"]
[BlackClock "0:00:03"]

1. c4 {[%clk 0:03:00]}  Nf6 {[%clk 0:02:57]} 2. Nc3 {[%clk 0:02:59]}  g6 {[%clk 0:02:56]} 3. g3 {[%clk 0:02:58]}  Bg7 {[%clk 0:02:55]} 4. Bg2 {[%clk 0:02:58]}  O-O {[%clk 0:02:56]} 5. b3 {[%clk 0:02:56]}  d6 {[%clk 0:02:57]} 6. Bb2 {[%clk 0:02:57]}  Nc6 {[%clk 0:02:58]} 7. Nf3 {[%clk 0:02:57]}  e5 {[%clk 0:02:58]} 8. d3 {[%clk 0:02:57]}  Bg4 {[%clk 0:02:56]} 9. O-O {[%clk 0:02:57]}  Qd7 {[%clk 0:02:52]} 10. a3 {[%clk 0:02:53]}  Bh3 {[%clk 0:02:50]} 11. b4 {[%clk 0:02:50]}  Bxg2 {[%clk 0:02:44]} 12. Kxg2 {[%clk 0:02:51]}  Rfe8 {[%clk 0:02:45]} 13. e4 {[%clk 0:02:48]}  Ne7 {[%clk 0:02:42]} 14. h3 {[%clk 0:02:46]}  h5 {[%clk 0:02:41]} 15. Bc1 {[%clk 0:02:45]}  Nh7 {[%clk 0:02:34]} 16. Rb1 {[%clk 0:02:44]}  Rf8 {[%clk 0:02:31]} 17. d4 {[%clk 0:02:36]}  exd4 {[%clk 0:02:16]} 18. Nxd4 {[%clk 0:02:35]}  Nc6 {[%clk 0:02:17]} 19. Be3 {[%clk 0:02:32]}  Ne5 {[%clk 0:01:58]} 20. Qe2 {[%clk 0:02:27]}  Rae8 {[%clk 0:01:48]} 21. Rbd1 {[%clk 0:02:23]}  Qd8 {[%clk 0:01:35]} 22. f4 {[%clk 0:02:13]}  Nd7 {[%clk 0:01:33]} 23. Qf3 {[%clk 0:02:10]}  Nb6 {[%clk 0:01:30]} 24. Qe2 {[%clk 0:02:01]}  Nf6 {[%clk 0:01:24]} 25. c5 {[%clk 0:01:54]}  Nxe4 {[%clk 0:01:08]} 26. Nxe4 {[%clk 0:01:50]}  Rxe4 {[%clk 0:01:09]} 27. cxb6 {[%clk 0:01:14]}  Rfe8 {[%clk 0:01:09]} 28. bxc7 {[%clk 0:01:09]}  Qxc7 {[%clk 0:01:06]} 29. Qc2 {[%clk 0:01:08]}  Qxc2+ {[%clk 0:00:47]} 30. Nxc2 {[%clk 0:01:08]}  Rxe3 {[%clk 0:00:48]} 31. Nxe3 {[%clk 0:01:08]}  Rxe3 {[%clk 0:00:48]} 32. Rf3 {[%clk 0:01:05]}  Re2+ {[%clk 0:00:49]} 33. Rf2 {[%clk 0:01:05]}  Re3 {[%clk 0:00:49]} 34. Rxd6 {[%clk 0:01:03]}  Rxa3 {[%clk 0:00:48]} 35. Rd8+ {[%clk 0:01:02]}  Bf8 {[%clk 0:00:46]} 36. Re2 {[%clk 0:00:58]}  Kg7 {[%clk 0:00:43]} 37. b5 {[%clk 0:00:58]}  h4 {[%clk 0:00:38]} 38. gxh4 {[%clk 0:00:55]}  Rb3 {[%clk 0:00:33]} 39. Rd5 {[%clk 0:00:50]}  b6 {[%clk 0:00:32]} 40. Ra2 {[%clk 0:00:48]}  Bc5 {[%clk 0:00:30]} 41. Rxa7 {[%clk 0:00:47]}  Rb2+ {[%clk 0:00:23]} 42. Kg3 {[%clk 0:00:39]}  Bf2+ {[%clk 0:00:21]} 43. Kf3 {[%clk 0:00:36]}  Bxh4 {[%clk 0:00:20]} 44. Rdd7 {[%clk 0:00:36]}  Rxb5 {[%clk 0:00:05]} 45. Rxf7+ {[%clk 0:00:36]}  Kg8 {[%clk 0:00:05]} 46. Rg7+ {[%clk 0:00:36]}  Kf8 {[%clk 0:00:04]} 47. Rh7 {[%clk 0:00:35]}  Bf6 {[%clk 0:00:03]} 48. Rhf7+ {[%clk 0:00:34]} 1-0


[Site "https://www.chess.com"]

[Event "Titled Tuesday Blitz April 05 Early 2022"]
[White "Alboredo, Julia"]
[Black "Iskusnyh, Sergei"]
[WhiteFideId "2124807"]
[BlackFideId "4120027"]
[WhiteElo "2041"]
[BlackElo "2492"]
[Result "0-1"]
[Round "10"]
[TimeControl "180+1"]
[Date "2022.04.05"]
[WhiteClock "0:00:07"]
[BlackClock "0:00:11"]

1. e4 {[%clk 0:03:00]}  e6 {[%clk 0:02:59]} 2. d4 {[%clk 0:02:58]}  d5 {[%clk 0:03:00]} 3. Bd3 {[%clk 0:02:56]}  c5 {[%clk 0:02:59]} 4. exd5 {[%clk 0:02:55]}  exd5 {[%clk 0:03:00]} 5. Nf3 {[%clk 0:02:55]}  Nc6 {[%clk 0:03:00]} 6. h3 {[%clk 0:02:53]}  Nf6 {[%clk 0:02:45]} 7. O-O {[%clk 0:02:53]}  Be7 {[%clk 0:02:42]} 8. dxc5 {[%clk 0:02:47]}  Bxc5 {[%clk 0:02:41]} 9. Re1+ {[%clk 0:02:46]}  Be6 {[%clk 0:02:41]} 10. c3 {[%clk 0:02:42]}  O-O {[%clk 0:02:40]} 11. Nbd2 {[%clk 0:02:17]}  Bb6 {[%clk 0:02:36]} 12. Nb3 {[%clk 0:02:17]}  h6 {[%clk 0:02:28]} 13. Be3 {[%clk 0:02:11]}  Bc7 {[%clk 0:02:25]} 14. Nbd4 {[%clk 0:02:01]}  a6 {[%clk 0:02:19]} 15. Bc2 {[%clk 0:01:50]}  Qd6 {[%clk 0:02:13]} 16. Qd3 {[%clk 0:01:49]}  Ne4 {[%clk 0:02:12]} 17. Qe2 {[%clk 0:01:30]}  Rfe8 {[%clk 0:01:48]} 18. Rad1 {[%clk 0:01:27]}  Rad8 {[%clk 0:01:48]} 19. Bxe4 {[%clk 0:01:22]}  dxe4 {[%clk 0:01:47]} 20. Nxe6 {[%clk 0:01:05]}  Qxe6 {[%clk 0:01:39]} 21. Nd4 {[%clk 0:01:00]}  Qe5 {[%clk 0:01:13]} 22. g3 {[%clk 0:00:57]}  Nxd4 {[%clk 0:01:03]} 23. Rxd4 {[%clk 0:00:56]}  Qe6 {[%clk 0:00:59]} 24. Kg2 {[%clk 0:00:52]}  Qxa2 {[%clk 0:00:54]} 25. Qg4 {[%clk 0:00:50]}  Qe6 {[%clk 0:00:50]} 26. Qxe6 {[%clk 0:00:37]}  Rxe6 {[%clk 0:00:49]} 27. Rxd8+ {[%clk 0:00:37]}  Bxd8 {[%clk 0:00:49]} 28. Rd1 {[%clk 0:00:38]}  Bf6 {[%clk 0:00:43]} 29. Rd7 {[%clk 0:00:38]}  b5 {[%clk 0:00:42]} 30. Ra7 {[%clk 0:00:36]}  g5 {[%clk 0:00:37]} 31. Kf1 {[%clk 0:00:30]}  Kg7 {[%clk 0:00:36]} 32. Ke2 {[%clk 0:00:30]}  Kg6 {[%clk 0:00:37]} 33. Kd2 {[%clk 0:00:21]}  Rd6+ {[%clk 0:00:31]} 34. Ke2 {[%clk 0:00:22]}  Be5 {[%clk 0:00:31]} 35. Re7 {[%clk 0:00:19]}  f6 {[%clk 0:00:31]} 36. Rb7 {[%clk 0:00:18]}  h5 {[%clk 0:00:29]} 37. g4 {[%clk 0:00:16]}  Rc6 {[%clk 0:00:24]} 38. Ra7 {[%clk 0:00:13]}  h4 {[%clk 0:00:22]} 39. Ra8 {[%clk 0:00:12]}  Rd6 {[%clk 0:00:21]} 40. Rg8+ {[%clk 0:00:12]}  Kf7 {[%clk 0:00:21]} 41. Rh8 {[%clk 0:00:12]}  Ke6 {[%clk 0:00:21]} 42. Ra8 {[%clk 0:00:11]}  Kd5 {[%clk 0:00:21]} 43. Ra7 {[%clk 0:00:10]}  Kc4 {[%clk 0:00:20]} 44. Rc7+ {[%clk 0:00:07]}  Kb3 {[%clk 0:00:20]} 45. Bc5 {[%clk 0:00:06]}  Rd2+ {[%clk 0:00:18]} 46. Kxd2 {[%clk 0:00:06]}  Bxc7 {[%clk 0:00:19]} 47. Bd4 {[%clk 0:00:06]}  Bf4+ {[%clk 0:00:15]} 48. Ke2 {[%clk 0:00:05]}  Be5 {[%clk 0:00:15]} 49. Bxe5 {[%clk 0:00:05]}  fxe5 {[%clk 0:00:15]} 50. Ke3 {[%clk 0:00:06]}  Kxb2 {[%clk 0:00:16]} 51. Kxe4 {[%clk 0:00:07]}  a5 {[%clk 0:00:16]} 52. Kxe5 {[%clk 0:00:06]}  a4 {[%clk 0:00:17]} 53. Kf5 {[%clk 0:00:05]}  a3 {[%clk 0:00:16]} 54. Kxg5 {[%clk 0:00:06]}  a2 {[%clk 0:00:17]} 55. f4 {[%clk 0:00:07]}  a1=Q {[%clk 0:00:17]} 56. f5 {[%clk 0:00:08]}  Qc1+ {[%clk 0:00:17]} 57. Kxh4 {[%clk 0:00:08]}  Qxc3 {[%clk 0:00:16]} 58. g5 {[%clk 0:00:08]}  Qe5 {[%clk 0:00:13]} 59. f6 {[%clk 0:00:08]}  Qf5 {[%clk 0:00:13]} 60. Kh5 {[%clk 0:00:07]}  Qh7+ {[%clk 0:00:11]} 61. Kg4 {[%clk 0:00:07]}  Kc3 {[%clk 0:00:12]} 62. h4 {[%clk 0:00:07]}  b4 {[%clk 0:00:11]} 63. h5 {[%clk 0:00:08]}  Qe4+ {[%clk 0:00:11]} 64. Kg3 {[%clk 0:00:08]}  Qf5 {[%clk 0:00:10]} 65. Kh4 {[%clk 0:00:07]}  Qf4+ {[%clk 0:00:11]} 66. Kh3 {[%clk 0:00:07]}  Qxg5 {[%clk 0:00:11]} 0-1


[Site "https://www.chess.com"]

[Event "Titled Tuesday Blitz April 05 Early 2022"]
[White "Ardila, Oscar Humberto"]
[Black "Heinemann, Josefine"]
[WhiteFideId "4404742"]
[BlackFideId "12900460"]
[WhiteElo "1983"]
[BlackElo "2300"]
[Result "0-1"]
[Round "10"]
[TimeControl "180+1"]
[Date "2022.04.05"]
[WhiteClock "0:00:06"]
[BlackClock "0:00:03"]

1. d4 {[%clk 0:02:51]}  d5 {[%clk 0:02:58]} 2. c4 {[%clk 0:02:51]}  c6 {[%clk 0:02:57]} 3. Nc3 {[%clk 0:02:51]}  Nf6 {[%clk 0:02:57]} 4. e3 {[%clk 0:02:49]}  g6 {[%clk 0:02:46]} 5. Nf3 {[%clk 0:02:47]}  Bg7 {[%clk 0:02:45]} 6. b3 {[%clk 0:02:46]}  O-O {[%clk 0:02:42]} 7. Bb2 {[%clk 0:02:44]}  Bg4 {[%clk 0:02:30]} 8. Be2 {[%clk 0:02:43]}  dxc4 {[%clk 0:02:28]} 9. bxc4 {[%clk 0:02:42]}  c5 {[%clk 0:02:28]} 10. O-O {[%clk 0:02:37]}  cxd4 {[%clk 0:02:27]} 11. exd4 {[%clk 0:02:37]}  Nc6 {[%clk 0:02:25]} 12. d5 {[%clk 0:02:34]}  Na5 {[%clk 0:02:25]} 13. Qa4 {[%clk 0:02:22]}  Rc8 {[%clk 0:02:12]} 14. Ne5 {[%clk 0:01:46]}  Bxe2 {[%clk 0:02:09]} 15. Nxe2 {[%clk 0:01:46]}  Ne4 {[%clk 0:01:59]} 16. Rac1 {[%clk 0:01:36]}  Nc5 {[%clk 0:01:56]} 17. Qc2 {[%clk 0:01:15]}  Qd6 {[%clk 0:01:38]} 18. f4 {[%clk 0:01:10]}  b6 {[%clk 0:01:35]} 19. Bd4 {[%clk 0:01:08]}  e6 {[%clk 0:01:24]} 20. Rfd1 {[%clk 0:00:32]}  exd5 {[%clk 0:01:22]} 21. cxd5 {[%clk 0:00:31]}  Qxd5 {[%clk 0:01:03]} 22. Bxc5 {[%clk 0:00:25]}  Qxc5+ {[%clk 0:01:03]} 23. Qxc5 {[%clk 0:00:23]}  Rxc5 {[%clk 0:01:03]} 24. Rxc5 {[%clk 0:00:22]}  bxc5 {[%clk 0:01:03]} 25. Rd7 {[%clk 0:00:18]}  Bxe5 {[%clk 0:00:59]} 26. fxe5 {[%clk 0:00:18]}  Nc6 {[%clk 0:00:55]} 27. e6 {[%clk 0:00:13]}  fxe6 {[%clk 0:00:54]} 28. Rc7 {[%clk 0:00:13]}  Nd4 {[%clk 0:00:54]} 29. Nc3 {[%clk 0:00:10]}  a6 {[%clk 0:00:46]} 30. h3 {[%clk 0:00:10]}  Rf5 {[%clk 0:00:42]} 31. Ne4 {[%clk 0:00:10]}  Re5 {[%clk 0:00:33]} 32. Nxc5 {[%clk 0:00:09]}  Re1+ {[%clk 0:00:33]} 33. Kh2 {[%clk 0:00:08]}  Re2 {[%clk 0:00:33]} 34. h4 {[%clk 0:00:07]}  Rxa2 {[%clk 0:00:32]} 35. Rd7 {[%clk 0:00:05]}  e5 {[%clk 0:00:30]} 36. Ra7 {[%clk 0:00:04]}  a5 {[%clk 0:00:30]} 37. Nd7 {[%clk 0:00:04]}  e4 {[%clk 0:00:19]} 38. Nf6+ {[%clk 0:00:04]}  Kf8 {[%clk 0:00:19]} 39. Nxe4 {[%clk 0:00:03]}  a4 {[%clk 0:00:16]} 40. Ng5 {[%clk 0:00:03]}  a3 {[%clk 0:00:15]} 41. Nxh7+ {[%clk 0:00:03]}  Ke8 {[%clk 0:00:15]} 42. Nf6+ {[%clk 0:00:04]}  Kf8 {[%clk 0:00:13]} 43. Nd5 {[%clk 0:00:03]}  Ra1 {[%clk 0:00:09]} 44. Kg3 {[%clk 0:00:03]}  a2 {[%clk 0:00:09]} 45. Nc3 {[%clk 0:00:03]}  Rc1 {[%clk 0:00:08]} 46. Nxa2 {[%clk 0:00:03]}  Ra1 {[%clk 0:00:08]} 47. Kf4 {[%clk 0:00:03]}  Ne2+ {[%clk 0:00:08]} 48. Kg5 {[%clk 0:00:03]}  Nc3 {[%clk 0:00:08]} 49. Kf6 {[%clk 0:00:03]}  Rxa2 {[%clk 0:00:07]} 50. Rc7 {[%clk 0:00:03]}  Ra6+ {[%clk 0:00:06]} 51. Kg5 {[%clk 0:00:04]}  Ne4+ {[%clk 0:00:06]} 52. Kf4 {[%clk 0:00:03]}  Re6 {[%clk 0:00:06]} 53. g4 {[%clk 0:00:02]}  Nd6 {[%clk 0:00:05]} 54. Ra7 {[%clk 0:00:01]}  Re7 {[%clk 0:00:03]} 55. Ra8+ {[%clk 0:00:01]}  Kf7 {[%clk 0:00:03]} 56. h5 {[%clk 0:00:02]}  gxh5 {[%clk 0:00:03]} 57. gxh5 {[%clk 0:00:02]}  Ne8 {[%clk 0:00:04]} 58. Kf5 {[%clk 0:00:02]}  Ng7+ {[%clk 0:00:04]} 59. Kg5 {[%clk 0:00:02]}  Re5+ {[%clk 0:00:04]} 60. Kg4 {[%clk 0:00:02]}  Nxh5 {[%clk 0:00:02]} 61. Ra7+ {[%clk 0:00:03]}  Kg8 {[%clk 0:00:02]} 62. Ra8+ {[%clk 0:00:03]}  Kh7 {[%clk 0:00:02]} 63. Ra7+ {[%clk 0:00:04]}  Ng7 {[%clk 0:00:03]} 64. Ra6 {[%clk 0:00:04]}  Rb5 {[%clk 0:00:03]} 65. Ra7 {[%clk 0:00:04]}  Rb4+ {[%clk 0:00:03]} 66. Kg5 {[%clk 0:00:03]}  Rb5+ {[%clk 0:00:03]} 67. Kg4 {[%clk 0:00:03]}  Kg6 {[%clk 0:00:02]} 68. Ra6+ {[%clk 0:00:03]}  Kf7 {[%clk 0:00:03]} 69. Ra7+ {[%clk 0:00:04]}  Kf6 {[%clk 0:00:03]} 70. Ra6+ {[%clk 0:00:04]}  Ne6 {[%clk 0:00:04]} 71. Ra7 {[%clk 0:00:04]}  Rb4+ {[%clk 0:00:04]} 72. Kf3 {[%clk 0:00:04]}  Kf5 {[%clk 0:00:04]} 73. Ra8 {[%clk 0:00:05]}  Rb3+ {[%clk 0:00:04]} 74. Ke2 {[%clk 0:00:05]}  Ke4 {[%clk 0:00:04]} 75. Ra4+ {[%clk 0:00:04]}  Nd4+ {[%clk 0:00:04]} 76. Kf2 {[%clk 0:00:04]}  Rf3+ {[%clk 0:00:03]} 77. Kg2 {[%clk 0:00:04]}  Rc3 {[%clk 0:00:03]} 78. Kf2 {[%clk 0:00:04]}  Ke5 {[%clk 0:00:03]} 79. Kg2 {[%clk 0:00:04]}  Nf5 {[%clk 0:00:03]} 80. Ra5+ {[%clk 0:00:03]}  Kf4 {[%clk 0:00:03]} 81. Ra4+ {[%clk 0:00:04]}  Kg5 {[%clk 0:00:04]} 82. Ra5 {[%clk 0:00:04]}  Kg4 {[%clk 0:00:04]} 83. Ra4+ {[%clk 0:00:04]}  Kg5 {[%clk 0:00:04]} 84. Ra5 {[%clk 0:00:05]}  Rb3 {[%clk 0:00:04]} 85. Kf2 {[%clk 0:00:04]}  Kf6 {[%clk 0:00:03]} 86. Kg2 {[%clk 0:00:04]}  Kg6 {[%clk 0:00:03]} 87. Kf2 {[%clk 0:00:05]}  Kg5 {[%clk 0:00:03]} 88. Kg2 {[%clk 0:00:05]}  Rd3 {[%clk 0:00:04]} 89. Kf2 {[%clk 0:00:05]}  Kf4 {[%clk 0:00:04]} 90. Kg2 {[%clk 0:00:06]}  Nd4 {[%clk 0:00:04]} 91. Kf2 {[%clk 0:00:06]}  Rd2+ {[%clk 0:00:04]} 92. Ke1 {[%clk 0:00:06]}  Rb2 {[%clk 0:00:04]} 93. Ra4 {[%clk 0:00:05]}  Ke3 {[%clk 0:00:04]} 94. Kf1 {[%clk 0:00:06]}  Kf3 {[%clk 0:00:03]} 95. Kg1 {[%clk 0:00:05]}  Kg3 {[%clk 0:00:03]} 96. Ra3+ {[%clk 0:00:05]}  Nf3+ {[%clk 0:00:03]} 97. Kf1 {[%clk 0:00:06]}  Rf2# {[%clk 0:00:03]} 0-1


[Site "https://www.chess.com"]

[Event "Titled Tuesday Blitz April 05 Early 2022"]
[White "Bachmann, Axel"]
[Black "volunteers1998"]
[WhiteFideId "3700488"]
[WhiteElo "2587"]
[BlackElo "2332"]
[Result "1/2-1/2"]
[Round "10"]
[TimeControl "180+1"]
[Date "2022.04.05"]
[WhiteClock "0:00:07"]
[BlackClock "0:00:34"]

1. d4 {[%clk 0:03:00]}  f5 {[%clk 0:02:59]} 2. g3 {[%clk 0:02:58]}  Nf6 {[%clk 0:02:59]} 3. Bg2 {[%clk 0:02:59]}  g6 {[%clk 0:02:58]} 4. Nf3 {[%clk 0:03:00]}  Bg7 {[%clk 0:02:57]} 5. O-O {[%clk 0:03:00]}  O-O {[%clk 0:02:57]} 6. b3 {[%clk 0:03:01]}  d6 {[%clk 0:02:56]} 7. Bb2 {[%clk 0:03:01]}  c6 {[%clk 0:02:45]} 8. Nbd2 {[%clk 0:03:01]}  Na6 {[%clk 0:02:42]} 9. c4 {[%clk 0:02:51]}  e5 {[%clk 0:02:37]} 10. dxe5 {[%clk 0:02:47]}  Ng4 {[%clk 0:02:36]} 11. e4 {[%clk 0:02:41]}  Nxe5 {[%clk 0:02:33]} 12. Nxe5 {[%clk 0:02:41]}  Bxe5 {[%clk 0:02:31]} 13. Bxe5 {[%clk 0:02:40]}  dxe5 {[%clk 0:02:30]} 14. exf5 {[%clk 0:02:40]}  Bxf5 {[%clk 0:02:26]} 15. Ne4 {[%clk 0:02:38]}  Qxd1 {[%clk 0:02:18]} 16. Raxd1 {[%clk 0:02:37]}  Bxe4 {[%clk 0:02:18]} 17. Bxe4 {[%clk 0:02:37]}  Rad8 {[%clk 0:02:17]} 18. Kg2 {[%clk 0:02:29]}  Nc5 {[%clk 0:02:14]} 19. Bc2 {[%clk 0:02:29]}  Kf7 {[%clk 0:02:08]} 20. h4 {[%clk 0:02:28]}  Ke7 {[%clk 0:02:04]} 21. Rfe1 {[%clk 0:02:27]}  Rxd1 {[%clk 0:02:00]} 22. Rxd1 {[%clk 0:02:28]}  Rd8 {[%clk 0:01:55]} 23. Rxd8 {[%clk 0:02:24]}  Kxd8 {[%clk 0:01:56]} 24. h5 {[%clk 0:02:22]}  gxh5 {[%clk 0:01:55]} 25. Bxh7 {[%clk 0:02:21]}  Ke7 {[%clk 0:01:54]} 26. Bg6 {[%clk 0:02:20]}  Kf6 {[%clk 0:01:52]} 27. Bxh5 {[%clk 0:02:19]}  e4 {[%clk 0:01:52]} 28. f4 {[%clk 0:02:04]}  exf3+ {[%clk 0:01:48]} 29. Bxf3 {[%clk 0:01:52]}  Nd3 {[%clk 0:01:43]} 30. a3 {[%clk 0:01:48]}  Nc1 {[%clk 0:01:31]} 31. Bd1 {[%clk 0:01:26]}  Ke5 {[%clk 0:01:24]} 32. Kf3 {[%clk 0:01:23]}  Nd3 {[%clk 0:01:24]} 33. Ke3 {[%clk 0:01:19]}  Nc5 {[%clk 0:01:22]} 34. Bc2 {[%clk 0:01:16]}  a6 {[%clk 0:01:16]} 35. g4 {[%clk 0:01:09]}  Ne6 {[%clk 0:01:11]} 36. b4 {[%clk 0:01:05]}  Nd4 {[%clk 0:01:08]} 37. Be4 {[%clk 0:00:53]}  b6 {[%clk 0:01:09]} 38. g5 {[%clk 0:00:48]}  c5 {[%clk 0:01:06]} 39. Bd3 {[%clk 0:00:27]}  cxb4 {[%clk 0:01:02]} 40. axb4 {[%clk 0:00:25]}  Ne6 {[%clk 0:01:00]} 41. g6 {[%clk 0:00:22]}  Kf6 {[%clk 0:01:00]} 42. Kd2 {[%clk 0:00:16]}  Nf4 {[%clk 0:00:52]} 43. Kc3 {[%clk 0:00:15]}  Nxd3 {[%clk 0:00:48]} 44. Kxd3 {[%clk 0:00:15]}  Kxg6 {[%clk 0:00:48]} 45. c5 {[%clk 0:00:15]}  bxc5 {[%clk 0:00:43]} 46. bxc5 {[%clk 0:00:15]}  Kf6 {[%clk 0:00:39]} 47. Kc4 {[%clk 0:00:12]}  Ke6 {[%clk 0:00:36]} 48. Kb4 {[%clk 0:00:07]}  Kd5 {[%clk 0:00:34]} 49. Ka5 {[%clk 0:00:06]}  Kxc5 {[%clk 0:00:34]} 50. Kxa6 {[%clk 0:00:07]} 1/2-1/2


[Site "https://www.chess.com"]

[Event "Titled Tuesday Blitz April 05 Early 2022"]
[White "Baker, Chris W"]
[Black "Melikhov, Evgeny V."]
[WhiteFideId "401676"]
[BlackFideId "4122046"]
[WhiteElo "2148"]
[BlackElo "1931"]
[Result "0-1"]
[Round "10"]
[TimeControl "180+1"]
[Date "2022.04.05"]
[WhiteClock "0:00:55"]
[BlackClock "0:00:28"]

1. e4 {[%clk 0:02:57]}  c5 {[%clk 0:02:59]} 2. Nf3 {[%clk 0:02:55]}  d6 {[%clk 0:02:59]} 3. d4 {[%clk 0:02:55]}  cxd4 {[%clk 0:02:59]} 4. Nxd4 {[%clk 0:02:55]}  Nf6 {[%clk 0:02:59]} 5. Nc3 {[%clk 0:02:55]}  a6 {[%clk 0:03:00]} 6. Be3 {[%clk 0:02:52]}  e5 {[%clk 0:02:59]} 7. Nb3 {[%clk 0:02:51]}  Be6 {[%clk 0:02:59]} 8. Be2 {[%clk 0:02:50]}  Be7 {[%clk 0:02:59]} 9. Qd2 {[%clk 0:02:45]}  O-O {[%clk 0:02:59]} 10. O-O {[%clk 0:02:42]}  Ng4 {[%clk 0:02:50]} 11. Bxg4 {[%clk 0:02:40]}  Bxg4 {[%clk 0:02:50]} 12. f3 {[%clk 0:02:39]}  Be6 {[%clk 0:02:49]} 13. Rad1 {[%clk 0:02:36]}  Nd7 {[%clk 0:02:45]} 14. Nd5 {[%clk 0:02:31]}  Bxd5 {[%clk 0:02:43]} 15. Qxd5 {[%clk 0:02:31]}  Qc7 {[%clk 0:02:43]} 16. c3 {[%clk 0:02:28]}  b5 {[%clk 0:02:36]} 17. Rd2 {[%clk 0:02:18]}  Rac8 {[%clk 0:02:34]} 18. Rfd1 {[%clk 0:02:17]}  Qc6 {[%clk 0:02:32]} 19. Qxc6 {[%clk 0:02:17]}  Rxc6 {[%clk 0:02:32]} 20. Na5 {[%clk 0:02:07]}  Rc7 {[%clk 0:02:29]} 21. Kf2 {[%clk 0:01:58]}  f5 {[%clk 0:02:28]} 22. exf5 {[%clk 0:01:53]}  Rxf5 {[%clk 0:02:27]} 23. a4 {[%clk 0:01:44]}  bxa4 {[%clk 0:02:19]} 24. Ra1 {[%clk 0:01:44]}  Nc5 {[%clk 0:02:16]} 25. Bxc5 {[%clk 0:01:43]}  Rxc5 {[%clk 0:02:16]} 26. Rxa4 {[%clk 0:01:43]}  Kf7 {[%clk 0:01:47]} 27. Nb7 {[%clk 0:01:41]}  Rc6 {[%clk 0:01:46]} 28. Na5 {[%clk 0:01:35]}  Rc5 {[%clk 0:01:39]} 29. c4 {[%clk 0:01:24]}  e4 {[%clk 0:00:56]} 30. Nb3 {[%clk 0:01:10]}  Rce5 {[%clk 0:00:35]} 31. Re2 {[%clk 0:01:01]}  exf3 {[%clk 0:00:34]} 32. gxf3 {[%clk 0:01:01]}  Bh4+ {[%clk 0:00:32]} 33. Kf1 {[%clk 0:00:58]}  Rxf3+ {[%clk 0:00:32]} 34. Kg2 {[%clk 0:00:58]}  Rxb3 {[%clk 0:00:29]} 35. Rxe5 {[%clk 0:00:56]}  dxe5 {[%clk 0:00:29]} 36. Rxa6 {[%clk 0:00:55]}  Rxb2+ {[%clk 0:00:28]} 0-1


[Site "https://www.chess.com"]